fUSD/lending_fUSD_20240113
["ID","MTS","AMOUNT","RATE_DAILY","PERIOD"]
[311520817,1705175442773,-3119.28,0.00026487,2]
[311520818,1705175442782,-200.0,0.00026516,2]
[311520819,1705175442791,-26836.41340035,0.00026573,2]
[311520820,1705175442801,-16542.63,0.00026575,2]
[311520821,1705175442810,-2897.11,0.00026575,2]
[311520822,1705175442819,-1000.0,0.00026665,2]
[311520823,1705175442828,-167.0,0.00026703,2]
[311520824,1705175442837,-293.0,0.00026785,2]
[311520825,1705175442848,-5000.0,0.000269,2]
[311520826,1705175442857,-151.55161922,0.00026978,2]
[311520827,1705175442866,-12286.20478265,0.00027,2]
[311520828,1705175442875,-155.0,0.00027,2]
[311520829,1705175442883,-415.6983628,0.00027,2]
[311520830,1705175442892,-1000.0,0.00027,2]
[311520831,1705175442901,-1000.0,0.00027,2]
[311520832,1705175442911,-319.86,0.00027,2]
[311520833,1705175442920,-1906.52,0.0002708,2]
[311520834,1705175442929,-1812.62,0.00027123,2]
[311520835,1705175442939,-250.0,0.00027309,2]
[311520836,1705175442948,-3119.28,0.00027356,2]
[311520837,1705175442956,-500.0,0.00027396,2]
[311520838,1705175442965,-500.95092924,0.00027397,2]
[311520839,1705175442974,-1000.0,0.00027397,2]
[311520840,1705175442983,-1000.0,0.00027397,2]
[311520842,1705175442992,-1000.0,0.00027397,2]
[311520844,1705175443001,-1000.0,0.00027397,2]
[311520845,1705175443011,-1000.0,0.00027397,2]
[311520847,1705175443020,-1000.0,0.00027397,2]
[311520849,1705175443029,-1000.0,0.00027397,2]
[311520851,1705175443038,-1000.0,0.00027397,2]
[311520853,1705175443047,-1000.0,0.00027397,2]
[311520854,1705175443056,-1000.0,0.00027397,2]
[311520855,1705175443065,-1000.0,0.00027397,2]
[311520856,1705175443074,-1000.0,0.00027397,2]
[311520857,1705175443083,-473.40493351,0.00027397,2]
[311520858,1705175443093,-519.48450748,0.00027397,2]
[311520859,1705175443103,-1000.0,0.00027397,2]
[311520860,1705175443113,-502.58704907,0.00027397,2]
[311520861,1705175443122,-419.33293259,0.00027397,2]
[311520862,1705175443131,-3606.32189867,0.00027397,2]
[311520863,1705175443140,-268.13381279,0.00027397,2]
[311520864,1705175443149,-200.0,0.00027397,5]
[311520865,1705175443158,-500.0,0.00027397,2]
[311520866,1705175443167,-500.0,0.00027397,2]
[311520867,1705175443176,-500.0,0.00027397,2]
[311520868,1705175443185,-516.03168529,0.00027397,2]
[311520869,1705175443194,-707.57,0.00027397,2]
[311520870,1705175443203,-707.57,0.00027397,2]
[311520871,1705175443212,-707.57,0.00027397,2]
[311520872,1705175443221,-707.57,0.00027397,2]
[311520873,1705175443230,-707.57,0.00027397,2]
[311520874,1705175443239,-707.57,0.00027397,2]
[311520875,1705175443247,-707.57,0.00027397,2]
[311520876,1705175443256,-707.57,0.00027397,2]
[311520877,1705175443266,-707.57,0.00027397,2]
[311520878,1705175443274,-707.57,0.00027397,2]
[311520879,1705175443283,-707.57,0.00027397,2]
[311520880,1705175443292,-164.12238173,0.00027397,2]
[311520881,1705175443301,-500.0,0.00027397,2]
[311520882,1705175443310,-500.0,0.00027397,2]
[311520883,1705175443319,-500.0,0.00027397,2]
[311520884,1705175443328,-170.40267179,0.00027397,2]
[311520885,1705175443337,-150.0,0.00027397,2]
[311520886,1705175443346,-1000.0,0.00027397,7]
[311520887,1705175443355,-1027.95634256,0.00027397,7]
[311520888,1705175443364,-3000.0,0.00027397,2]
[311520889,1705175443373,-3000.0,0.00027397,2]
[311520890,1705175443382,-3000.0,0.00027397,2]
[311520891,1705175443391,-3000.0,0.00027397,2]
[311520892,1705175443400,-3000.0,0.00027397,2]
[311520893,1705175443409,-3000.0,0.00027397,2]
[311520894,1705175443418,-3000.0,0.00027397,2]
[311520895,1705175443427,-3000.0,0.00027397,2]
[311520896,1705175443435,-3000.0,0.00027397,2]
[311520897,1705175443444,-3000.0,0.00027397,2]
[311520898,1705175443453,-3000.0,0.00027397,2]
[311520899,1705175443462,-3000.0,0.00027397,2]
[311520900,1705175443471,-3000.0,0.00027397,2]
[311520901,1705175443480,-3000.0,0.00027397,2]
[311520902,1705175443489,-3000.0,0.00027397,2]
[311520903,1705175443498,-3000.0,0.00027397,2]
[311520904,1705175443507,-3000.0,0.00027397,2]
[311520905,1705175443516,-3000.0,0.00027397,2]
[311520906,1705175443525,-3000.0,0.00027397,2]
[311520907,1705175443534,-3000.0,0.00027397,2]
[311520908,1705175443544,-155.0,0.00027397,2]
[311520909,1705175443556,-23366.29,0.00027397,2]
[311520910,1705175443565,-15053.3,0.00027397,2]
[311520911,1705175443574,-33588.95,0.00027397,2]
[311520912,1705175443583,-250.0,0.00027397,2]
[311520913,1705175443592,-707.57,0.00027399,2]
[311520914,1705175443603,-5689.32768707,0.000274,2]
[311520915,1705175443612,-250.0,0.000274,2]
[311520916,1705175443621,-250.0,0.000274,2]
[311520917,1705175443631,-3392.77,0.000274,2]
[311520918,1705175443640,-3392.77,0.000274,2]
[311520919,1705175443649,-3392.77,0.000274,2]
[311520920,1705175443658,-3392.77,0.000274,2]
[311520921,1705175443667,-3392.77,0.000274,2]
[311520922,1705175443676,-3392.77,0.000274,2]
[311520923,1705175443686,-3392.77,0.000274,2]
[311520924,1705175443694,-3392.77,0.000274,2]
[311520925,1705175443703,-3392.77,0.000274,2]
[311520926,1705175443713,-3392.77,0.000274,2]
[311520927,1705175443722,-1355.0,0.00027409,2]
[311520928,1705175443731,-835.0,0.00027409,2]
[311520929,1705175443740,-1852.0,0.00027409,2]
[311520930,1705175443749,-945.0,0.00027409,2]
[311520931,1705175443758,-300.75,0.00027409,2]
[311520932,1705175443767,-1252.0,0.00027409,2]
[311520933,1705175443777,-1234.0,0.00027409,2]
[311520934,1705175443786,-1493.615,0.00027409,2]
[311520935,1705175443795,-507.0,0.00027409,2]
[311520936,1705175443805,-318.0,0.00027409,2]
[311520937,1705175443814,-879.0,0.00027409,2]
[311520938,1705175443823,-19683.0,0.00027409,2]
[311520939,1705175443832,-2901.0,0.00027409,2]
[311520940,1705175443842,-8086.0,0.00027409,2]
[311520941,1705175443851,-2271.0,0.00027409,2]
[311520942,1705175443860,-7343.0,0.00027409,2]
[311520943,1705175443869,-150.0,0.00027409,2]
[311520944,1705175443878,-1028.0,0.00027409,2]
[311520945,1705175443887,-150.0,0.00027409,2]
[311520946,1705175443896,-150.0,0.00027409,2]
[311520947,1705175443906,-150.0,0.00027409,2]
[311520948,1705175443915,-533.40967656,0.00027444,2]
[311520949,1705175443925,-4922.7960457,0.000275,2]
[311520950,1705175443934,-167.0,0.00027505,2]
[311520951,1705175443944,-15053.3,0.00027556,2]
[311520952,1705175443953,-15053.3,0.00027714,2]
[311520953,1705175443962,-1576.0,0.00027803,5]
[311520954,1705175443971,-26836.41340035,0.00027864,2]
[311520955,1705175443980,-15053.3,0.00027872,2]
[311520956,1705175443989,-200.0,0.00027945,5]
[311520957,1705175443998,-150.0,0.00027945,2]
[311520958,1705175444009,-150.0,0.00027978,2]
[311520959,1705175444018,-688.02629954,0.00028,2]
[311520960,1705175444027,-202.83544336,0.00028,2]
[311520961,1705175444036,-1000.0,0.00028,2]
[311520962,1705175444046,-1000.0,0.00028,2]
[311520963,1705175444055,-2061.43672,0.00028,2]
[311520964,1705175444065,-1400.0,0.00028,3]
[311520965,1705175444075,-200.0,0.00028,2]
[311520966,1705175444084,-15053.3,0.0002803,2]
[311520967,1705175444093,-1906.52,0.00028058,2]
[311520968,1705175444103,-20000.0,0.00028088,2]
[311520969,1705175444112,-516.79,0.00028187,2]
[311520970,1705175444121,-500.0,0.00028188,2]
[311520971,1705175444130,-500.0,0.00028188,2]
[311520972,1705175444139,-500.0,0.00028188,2]
[311520973,1705175444148,-500.0,0.00028188,2]
[311520974,1705175444157,-500.0,0.00028188,2]
[311520975,1705175444166,-500.0,0.00028188,2]
[311520976,1705175444175,-500.0,0.00028188,2]
[311520977,1705175444184,-500.0,0.00028188,2]
[311520978,1705175444193,-500.0,0.00028188,2]
[311520979,1705175444202,-500.0,0.00028188,2]
[311520980,1705175444211,-500.0,0.00028188,2]
[311520981,1705175444220,-500.0,0.00028188,2]
[311520982,1705175444229,-500.0,0.00028188,2]
[311520983,1705175444238,-500.0,0.00028188,2]
[311520984,1705175444247,-500.0,0.00028188,2]
[311520985,1705175444258,-500.0,0.00028188,2]
[311520986,1705175444267,-15053.3,0.00028189,2]
[311520987,1705175444276,-500.0,0.00028219,2]
[311520988,1705175444286,-500.0,0.00028219,2]
[311520989,1705175444295,-500.0,0.00028219,2]
[311520990,1705175444304,-500.0,0.00028219,2]
[311520991,1705175444313,-500.0,0.00028219,2]
[311520992,1705175444323,-500.0,0.00028219,2]
[311520993,1705175444332,-500.0,0.00028219,2]
[311520994,1705175444505,-500.0,0.00028219,2]
[311520995,1705175444515,-500.0,0.00028219,2]
[311520996,1705175444525,-500.0,0.00028219,2]
[311520997,1705175444534,-500.0,0.00028219,2]
[311520998,1705175444543,-500.0,0.00028219,2]
[311520999,1705175444553,-500.0,0.00028219,2]
[311521000,1705175444563,-500.0,0.00028219,2]
[311521001,1705175444573,-500.0,0.00028219,2]
[311521002,1705175444583,-500.0,0.00028219,2]
[311521003,1705175444593,-500.0,0.00028219,2]
[311521004,1705175444603,-500.0,0.00028219,2]
[311521005,1705175444613,-200.0,0.00028219,2]
[311521006,1705175444623,-500.0,0.00028219,2]
[311521007,1705175444632,-500.0,0.00028219,2]
[311521008,1705175444642,-500.0,0.00028219,2]
[311521009,1705175444651,-500.0,0.00028219,2]
[311521010,1705175444660,-500.0,0.00028219,2]
[311521011,1705175444670,-500.0,0.00028219,2]
[311521012,1705175444680,-500.0,0.00028219,2]
[311521013,1705175444691,-500.0,0.00028219,2]
[311521014,1705175444701,-500.0,0.00028219,2]
[311521015,1705175444711,-500.0,0.00028219,2]
[311521016,1705175444721,-588.0,0.00028219,2]
[311521017,1705175444730,-588.0,0.00028219,2]
[311521018,1705175444740,-588.0,0.00028219,2]
[311521019,1705175444750,-588.0,0.00028219,2]
[311521020,1705175444761,-588.0,0.00028219,2]
[311521021,1705175444769,-588.0,0.00028219,2]
[311521022,1705175444780,-277.24236193,0.00028219,2]
[311521023,1705175444789,-3119.28,0.00028225,2]
[311521024,1705175444798,-225.96995421,0.00028298,4]
[311521025,1705175444807,-167.0,0.00028307,2]
[311521026,1705175444816,-413.53,0.00028347,2]
[311521027,1705175444826,-15053.3,0.00028347,2]
[311521028,1705175444835,-200.0,0.00028493,5]
[311521029,1705175444844,-150.0,0.00028493,2]
[311521030,1705175444854,-450.0,0.00028505,2]
[311521031,1705175444863,-500.0,0.00028505,2]
[311521032,1705175444872,-500.0,0.00028505,2]
[311521033,1705175444881,-500.0,0.00028505,2]
[311521034,1705175444891,-500.0,0.00028505,2]
[311521035,1705175444901,-500.0,0.00028505,2]
[311521036,1705175444910,-500.0,0.00028505,2]
[311521037,1705175444919,-500.0,0.00028505,2]
[311521038,1705175444928,-500.0,0.00028505,2]
[311521039,1705175444937,-500.0,0.00028505,2]
[311521040,1705175444946,-500.0,0.00028505,2]
[311521041,1705175444955,-500.0,0.00028505,2]
[311521042,1705175444965,-500.0,0.00028505,2]
[311521043,1705175444974,-500.0,0.00028505,2]
[311521044,1705175444983,-500.0,0.00028505,2]
[311521045,1705175444993,-500.0,0.00028505,2]
[311521046,1705175445002,-500.0,0.00028505,2]
[311521047,1705175445011,-500.0,0.00028505,2]
[311521048,1705175445020,-500.0,0.00028505,2]
[311521049,1705175445030,-500.0,0.00028505,2]
[311521050,1705175445039,-500.0,0.00028505,2]
[311521051,1705175445048,-500.0,0.00028505,2]
[311521052,1705175445058,-500.0,0.00028505,2]
[311521053,1705175445067,-500.0,0.00028505,2]
[311521054,1705175445076,-500.0,0.00028505,2]
[311521055,1705175445086,-500.0,0.00028505,2]
[311521056,1705175445096,-15053.3,0.00028505,2]
[311521057,1705175445105,-707.57,0.00028663,2]
[311521058,1705175445115,-15053.3,0.00028664,2]
[311521059,1705175445124,-155.0,0.00028767,2]
[311521060,1705175445133,-15053.3,0.00028822,2]
[311521061,1705175445142,-362.1668576,0.00028908,2]
[311521062,1705175445152,-150.0,0.00028978,2]
[311521063,1705175445161,-155.22826911,0.00029,2]
[311521064,1705175445170,-1000.0,0.00029,2]
[311521065,1705175445180,-1000.0,0.00029,2]
[311521066,1705175445189,-2000.0,0.00029,2]
[311521067,1705175445198,-1906.52,0.00029037,2]
[311521068,1705175445208,-353.2699401,0.00029041,5]
[311521069,1705175445217,-150.0,0.00029041,2]
[311521070,1705175445227,-26836.41340035,0.00029155,2]
[311521071,1705175445236,-200.0,0.00029167,2]
[311521072,1705175445245,-9119.58084161,0.00029189,2]
[311521073,1705175445254,-1000.0,0.00029332,2]
[311521074,1705175445263,-411.0,0.00029464,2]
[311521075,1705175445273,-150.0,0.00029478,2]
[311521076,1705175445282,-150.0,0.00029478,2]
[311521077,1705175445292,-6181.0,0.0002948,2]
[311521078,1705175445301,-299.56963255,0.000295,3]
[311521079,1705175445311,-2000.0,0.000295,3]
[311521080,1705175445320,-697.53270087,0.0002957,2]
[311521081,1705175445330,-150.0,0.00029589,2]
[311521082,1705175445339,-152.0,0.00029593,3]
[311521084,1705175445348,-208.0,0.00029629,7]
[311521085,1705175445357,-150.0,0.00029677,2]
[311521086,1705175445366,-150.0,0.00029677,2]
[311521088,1705175445375,-9675.60672288,0.00029693,2]
[311521089,1705175445384,-3302.9267927,0.00029693,2]
[311521091,1705175445393,-4902.47554985,0.00029693,2]
[311521093,1705175445403,-175.32047182,0.000298,2]
[311521094,1705175445411,-6457.4,0.00029899,2]
[311521095,1705175445421,-6457.4,0.00029899,2]
[311521096,1705175445429,-6457.4,0.00029899,2]
[311521097,1705175445438,-6457.4,0.00029899,2]
[311521098,1705175445448,-6457.4,0.00029899,2]
[311521099,1705175445457,-6457.4,0.00029899,2]
[311521100,1705175445466,-6457.4,0.00029899,2]
[311521101,1705175445475,-6457.4,0.00029899,2]
[311521102,1705175445484,-6457.4,0.00029899,2]
[311521103,1705175445493,-6457.4,0.00029899,2]
[311521104,1705175445502,-40117.81,0.000299,3]
[311521105,1705175445512,-150.0,0.00029978,2]
[311521106,1705175445521,-371.11406689,0.0002998,3]
[311521107,1705175445530,-808.31895898,0.0002998,3]
[311521108,1705175445539,-455.0497141,0.0002998,3]
[311521109,1705175445550,-6465.98001165,0.00029997,2]
[311521110,1705175445563,-707.57,0.00029998,2]
[311521111,1705175445572,-63505.371644,0.00029999,2]
[311521112,1705175445583,-206058.791296,0.00029999,2]
[311521113,1705175445592,-707.57,0.00029999,2]
[311521114,1705175445602,-707.57,0.00029999,2]
[311521115,1705175445612,-707.57,0.00029999,2]
[311521116,1705175445621,-707.57,0.00029999,2]
[311521117,1705175445631,-707.57,0.00029999,2]
[311521118,1705175445640,-100000.0,0.0003,2]
[311521119,1705175445649,-445.66890428,0.0003,4]
[311521120,1705175445658,-461.93477702,0.0003,4]
[311521121,1705175445667,-308526.35894868,0.0003,4]
[311521122,1705175445677,-581.92014557,0.0003,2]
[311521123,1705175445686,-891.31652036,0.0003,4]
[311521124,1705175445882,-1687.69136219,0.0003,4]
[311521125,1705175445892,-1177.62483638,0.0003,2]
[311521126,1705175445902,-155.0,0.0003,2]
[311521127,1705175445911,-72834.74040093,0.0003,4]
[311521128,1705175445920,-155.30285683,0.0003,4]
[311521129,1705175445931,-933.64378065,0.0003,4]
[311521130,1705175445943,-677.90141978,0.0003,4]
[311521131,1705175445953,-6853.14826371,0.0003,4]
[311521132,1705175445963,-813.21033884,0.0003,4]
[311521133,1705175445972,-19005.00681836,0.0003,4]
[311521134,1705175445981,-8829.15981851,0.0003,4]
[311521135,1705175445991,-691.08946322,0.0003,2]
[311521136,1705175446000,-9627.24499354,0.0003,2]
[311521138,1705175446010,-1256.30501093,0.0003,4]
[311521140,1705175446020,-75958.70853356,0.0003,2]
[311521142,1705175446032,-87748.66389934,0.0003,2]
[311521165,1705175446748,-1149.888539,0.00023921,2]
[311521166,1705175446759,-41057.03689992,0.0003,2]
[311521167,1705175446814,-26843.49784,0.0003,2]
[311521168,1705175446874,-723.61,0.00022219,2]
[311521169,1705175446883,-909.31621345,0.0003,2]
[311521170,1705175446914,-6651.12742283,0.0003,2]
[311521171,1705175447177,-150.0,0.00026668,2]
[311521172,1705175447188,-150.0,0.00026668,2]
[311521173,1705175447197,-195127.34730892,0.0003,2]
[311521174,1705175447207,-1291.12981979,0.0003,2]
[311521175,1705175447229,-10637.46729449,0.0003,2]
[311521178,1705175627029,436.31723575,0.00021988,2]
[311521179,1705175630849,170.55472325,0.00021988,2]
[311521181,1705175645234,359.85,0.00020428,2]
[311521184,1705175685553,960.0,0.0002191,2]
[311521190,1705175757530,154.77882621,0.00022029,2]
[311521198,1705175915418,3185.21463735,0.00021322,2]
[311521208,1705176080437,1933.36,0.00021918,2]
[311521209,1705176083387,341.85,0.00019865,2]
[311521210,1705176104474,792.75,0.00021671,2]
[311521211,1705176137917,1333.19880575,0.000221,2]
[311521213,1705176143495,171.99,0.0001734,2]
[311521214,1705176154878,232.0,0.00021611,2]
[311521215,1705176156850,9263.18,0.00021611,2]
[311521217,1705176229324,363.72563823,0.000221,2]
[311521218,1705176253260,1135.53862274,0.000221,2]
[311521220,1705176282317,1250.0,0.00022,3]
[311521225,1705176293191,236.70154545,0.00022,2]
[311521226,1705176319989,311.88548735,0.000221,2]
[311521236,1705176370652,171.19,0.00021753,2]
[311521272,1705176460015,23900.0,0.00021825,2]
[311521273,1705176479466,1982.44702751,0.00021322,2]
[311521284,1705176505506,200.98286647,0.00021215,2]
[311521285,1705176546004,739.9,0.00021825,2]
[311521287,1705176583486,1199.24599083,0.00021322,2]
[311521289,1705176631419,358.58,0.00022042,2]
[311521299,1705176631725,-1542.78234516,0.00022101,2]
[311521300,1705176631737,-427.785,0.00022101,2]
[311521301,1705176631748,-2728.76023118,0.00022101,2]
[311521302,1705176631758,-150.0,0.00022209,2]
[311521303,1705176631769,-728.4,0.00022209,2]
[311521304,1705176631778,-736.15,0.0002221,2]
[311521305,1705176631789,-1235.37,0.0002221,2]
[311521306,1705176631798,-248.76382358,0.0002221,2]
[311521307,1705176631808,-13390.63824358,0.0002221,2]
[311521308,1705176631817,-6973.49556619,0.0002221,2]
[311521309,1705176631826,-262.07566692,0.0002221,2]
[311521310,1705176631835,-4077.68717037,0.0002221,2]
[311521311,1705176631845,-1306.17308962,0.0002221,2]
[311521312,1705176631854,-387.51650547,0.0002221,2]
[311521313,1705176631863,-286.55754566,0.0002221,2]
[311521314,1705176631872,-363.24604809,0.00022211,2]
[311521315,1705176631881,-13229.16610934,0.00022212,2]
[311521316,1705176631906,-81227.20204704,0.00022212,2]
[311521317,1705176631917,-722.51,0.00022213,2]
[311521318,1705176631927,-714.95,0.00022213,2]
[311521319,1705176631937,-762.26,0.00022213,2]
[311521320,1705176631946,-499.99,0.00022215,2]
[311521321,1705176631956,-3469.3,0.00022215,2]
[311521322,1705176631965,-400.08,0.00022215,2]
[311521323,1705176631974,-718.41,0.00022215,2]
[311521324,1705176631984,-722.7,0.00022216,2]
[311521325,1705176631993,-730.51,0.00022216,2]
[311521326,1705176632002,-735.89,0.00022272,2]
[311521327,1705176632011,-4587.1753662,0.00022291,2]
[311521328,1705176632020,-728.14,0.00022292,2]
[311521329,1705176632029,-1000.0,0.00022299,2]
[311521330,1705176632039,-711.44,0.00022325,2]
[311521331,1705176632048,-30708.44258685,0.000224,2]
[311521332,1705176632060,-285.8344283,0.000224,2]
[311521333,1705176632089,-690.78500141,0.000224,2]
[311521334,1705176632109,-2657.13168263,0.000224,2]
[311521336,1705176632135,-5028.69970534,0.000224,2]
[311521338,1705176632147,-1293.658,0.000224,2]
[311521340,1705176632158,-328.56219678,0.000224,2]
[311521342,1705176632173,-547.03,0.000224,2]
[311521345,1705176632185,-1052.67095001,0.000224,2]
[311521348,1705176632196,-1136.03429294,0.000224,2]
[311521352,1705176632208,-591.42977514,0.000224,2]
[311521368,1705176637720,-2733.36764432,0.000224,2]
[311521369,1705176637731,-4273.4,0.000224,2]
[311521370,1705176637777,-251.60714365,0.000224,2]
[311521371,1705176637890,-951.26132272,0.000224,2]
[311521372,1705176637901,-455.23866117,0.000224,2]
[311521373,1705176637911,-343.81017987,0.000224,2]
[311521374,1705176638000,-432.99651565,0.000224,2]
[311521375,1705176638012,-323.0012525,0.000224,2]
[311521376,1705176638058,-344.68538523,0.000224,2]
[311521377,1705176638172,-18440.87538119,0.000224,2]
[311521436,1705176639659,353.11,0.00021519,2]
[311521442,1705176640387,-15031.33546077,0.000224,2]
[311521443,1705176640548,-1206.94574089,0.000224,2]
[311521460,1705176642731,-346.29776188,0.000224,3]
[311521461,1705176642741,-40127.86637195,0.000224,2]
[311521462,1705176642751,-154.77882621,0.00022465,2]
[311521463,1705176642760,-312.1805283,0.000228,3]
[311521464,1705176642769,-195204.77314319,0.000228,2]
[311521465,1705176642890,-4288.53712323,0.000228,2]
[311521466,1705176642946,-689.53461437,0.000228,2]
[311521467,1705176642958,-341.82,0.000228,2]
[311521468,1705176642970,-807.27721339,0.000228,2]
[311521469,1705176643002,-2723.63901046,0.000228,2]
[311521470,1705176643013,-30547.03987124,0.000228,2]
[311521481,1705176645854,-2970.28166007,0.00022799,2]
[311521483,1705176645863,-42907.65956884,0.000228,2]
[311521484,1705176646106,-4850.67,0.000228,2]
[311521485,1705176646118,-222806.22074054,0.000228,2]
[311521486,1705176646128,-316.84451511,0.00022804,3]
[311521487,1705176646137,-739.9,0.00022804,2]
[311521488,1705176646146,-400.89470632,0.000229,3]
[311521489,1705176646155,-154.77882621,0.000229,2]
[311521490,1705176646164,-3979.55379606,0.000229,2]
[311521492,1705176646387,-9438.65290417,0.000229,2]
[311521493,1705176646397,-25747.4112523,0.000229,2]
[311521494,1705176646411,-29807.5887477,0.000229,2]
[311521495,1705176646420,-1351.27219023,0.00022996,2]
[311521496,1705176646429,-400.0,0.00022997,2]
[311521497,1705176646439,-24312.16676934,0.00022999,2]
[311521498,1705176646448,-3849.35955632,0.00023,2]
[311521517,1705176947461,150.0,0.00022073,2]
[311521527,1705177014627,690.31,0.00022025,2]
[311521528,1705177014655,262.89,0.00022025,2]
[311521529,1705177031440,386.61135731,0.00022099,2]
[311521530,1705177091875,-311.88548735,0.00022109,2]
[311521531,1705177091897,-202.48653456,0.0002211,2]
[311521532,1705177091919,-150.0,0.00022111,2]
[311521533,1705177091939,-150.0,0.00022111,2]
[311521534,1705177091961,-19463.8134,0.00022112,2]
[311521535,1705177091983,-2990.7318,0.00022112,2]
[311521536,1705177092004,-250.0,0.00022182,2]
[311521537,1705177092027,-2338.17456223,0.0002229,2]
[311521538,1705177092049,-386.61135731,0.00022299,2]
[311521539,1705177092070,-31809.7403,0.000223,2]
[311521540,1705177092092,-19110.28636174,0.000225,2]
[311521541,1705177092113,-404.62,0.00022666,2]
[311521542,1705177092132,-55838.07462678,0.0002277,2]
[311521543,1705177092153,-298.44,0.0002277,2]
[311521544,1705177092174,-721.9,0.00022778,2]
[311521545,1705177092195,-285.78966781,0.00022898,3]
[311521546,1705177092214,-15287.44590222,0.00022898,2]
[311521547,1705177095106,151.0,0.00023,7]
[311521548,1705177106869,-20000.0,0.00022898,2]
[311521549,1705177125490,363.09,0.00020623,2]
[311521554,1705177171779,18948.40984176,0.00020623,2]
[311521555,1705177173894,3123.01195947,0.00021753,2]
[311521556,1705177188161,1100.54684923,0.00020623,2]
[311521557,1705177189850,1897.75273507,0.00020623,2]
[311521558,1705177196198,155.0,0.00020623,2]
[311521559,1705177208063,282.90032781,0.00020623,2]
[311521560,1705177209351,5186.35262149,0.00020623,2]
[311521561,1705177212034,2705.0,0.00022061,2]
[311521562,1705177213714,2176.62447328,0.00020417,2]
[311521563,1705177216166,14138.5782433,0.00020623,2]
[311521567,1705177238163,39099.54557874,0.00020623,2]
[311521568,1705177254577,169.10360193,0.00021,2]
[311521569,1705177256336,156.62101118,0.00020623,2]
[311521570,1705177260005,174.71,0.00021957,2]
[311521571,1705177262306,216.45480496,0.00020623,2]
[311521572,1705177270083,155.15509998,0.00018561,2]
[311521573,1705177279624,1288.53657582,0.00021796,2]
[311521574,1705177306682,2000.0,0.00021828,2]
[311521575,1705177341055,500.0,0.00021828,3]
[311521576,1705177347367,23900.0,0.00021828,2]
[311521577,1705177423089,162.5,0.00022039,2]
[311521602,1705177447688,1288.53657582,0.00021823,2]
[311521603,1705177448046,1288.53657582,0.00022037,2]
[311521604,1705177448868,644.28,0.00021811,2]
[311521605,1705177554541,200.0,0.00021766,2]
[311521606,1705177559081,344.93,0.00019844,2]
[311521607,1705177583658,155.60644901,0.00022075,2]
[311521608,1705177634279,814.4,0.00021755,2]
[311521616,1705177831931,-344.93,0.00022108,2]
[311521617,1705177831941,-709.95,0.00022173,2]
[311521618,1705177831950,-717.37,0.00022173,2]
[311521619,1705177831960,-727.45,0.00022174,2]
[311521620,1705177831969,-735.16,0.00022174,2]
[311521621,1705177831978,-714.56,0.00022175,2]
[311521622,1705177831988,-185.6,0.00022182,2]
[311521623,1705177832009,-735.25,0.0002219,2]
[311521624,1705177832018,-1288.53657582,0.00022246,2]
[311521625,1705177832029,-151.27,0.00022348,2]
[311521626,1705177832038,-150.99,0.00022348,2]
[311521627,1705177832048,-499.99,0.00022348,2]
[311521628,1705177832057,-150.0,0.00022399,2]
[311521629,1705177832067,-17747.76885133,0.000224,2]
[311521630,1705177832092,-600.0,0.000224,2]
[311521631,1705177832105,-763.87956881,0.000224,2]